[Event "Late-Titled-Tuesday-Blitz-January-30-2024"]
[Site "Chess.com"]
[Date "2024.01.30"]
[Round "3"]
[White "Perecke"]
[Black "jup1978"]
[Result "1-0"]
[WhiteElo "2603"]
[BlackElo "2432"]
[TimeControl "180+1"]
[EndTime "14:28:22 PST"]
[Termination "Perecke won by checkmate"]

1. e4 {[%clk 0:02:13.3]} 1... c6 {[%clk 0:02:58.5]} 2. d4 {[%clk 0:02:05.7]}
2... d5 {[%clk 0:02:59.4]} 3. Nc3 {[%clk 0:02:06.3]} 3... dxe4 {[%clk 0:02:59]}
4. Nxe4 {[%clk 0:02:07.2]} 4... Nf6 {[%clk 0:02:59.3]} 5. Nxf6+ {[%clk
0:02:05.3]} 5... exf6 {[%clk 0:03:00.2]} 6. c3 {[%clk 0:02:05.6]} 6... Bd6
{[%clk 0:03:00.4]} 7. Bd3 {[%clk 0:02:06.4]} 7... O-O {[%clk 0:03:00.4]} 8. Ne2
{[%clk 0:02:07.2]} 8... Re8 {[%clk 0:02:58.4]} 9. O-O {[%clk 0:02:07.3]} 9...
Qc7 {[%clk 0:02:56.2]} 10. Ng3 {[%clk 0:02:07.4]} 10... Na6 {[%clk 0:02:48.1]}
11. f4 {[%clk 0:02:04]} 11... c5 {[%clk 0:02:44.1]} 12. f5 {[%clk 0:01:56.9]}
12... cxd4 {[%clk 0:02:34.2]} 13. cxd4 {[%clk 0:01:57.8]} 13... Bd7 {[%clk
0:02:32]} 14. Qg4 {[%clk 0:01:55.3]} 14... Kh8 {[%clk 0:02:14.4]} 15. Qh4 {[%clk
0:01:42.9]} 15... Nb4 {[%clk 0:02:04.3]} 16. Bb1 {[%clk 0:01:18.3]} 16... Nc2
{[%clk 0:01:37.6]} 17. Bxc2 {[%clk 0:00:47.6]} 17... Qxc2 {[%clk 0:01:38.5]} 18.
Nh5 {[%clk 0:00:48]} 18... Qe4 {[%clk 0:01:20]} 19. Qh3 {[%clk 0:00:28.8]} 19...
Qxd4+ {[%clk 0:01:06.9]} 20. Kh1 {[%clk 0:00:29.1]} 20... Bc6 {[%clk 0:01:03]}
21. Bf4 {[%clk 0:00:28.5]} 21... Bxf4 {[%clk 0:00:53.3]} 22. Nxf4 {[%clk
0:00:26.5]} 22... Qxb2 {[%clk 0:00:50.2]} 23. Qg4 {[%clk 0:00:22.9]} 23... Re4
{[%clk 0:00:39.1]} 24. Rad1 {[%clk 0:00:19.9]} 24... Rae8 {[%clk 0:00:36.9]} 25.
h3 {[%clk 0:00:19.7]} 25... h6 {[%clk 0:00:21.4]} 26. Rd3 {[%clk 0:00:18.9]}
26... Re1 {[%clk 0:00:04.8]} 27. Rxe1 {[%clk 0:00:14.6]} 27... Rxe1+ {[%clk
0:00:05.7]} 28. Kh2 {[%clk 0:00:14.7]} 28... Qe5 {[%clk 0:00:05.2]} 29. Rd8+
{[%clk 0:00:10.9]} 29... Kh7 {[%clk 0:00:05.6]} 30. Qg6+ {[%clk 0:00:11.2]}
30... fxg6 {[%clk 0:00:02.4]} 31. fxg6# {[%clk 0:00:12.1]} 1-0

[Event "Late-Titled-Tuesday-Blitz-January-30-2024"]
[Site "Chess.com"]
[Date "2024.01.30"]
[Round "3"]
[White "sari07"]
[Black "gomeschess02"]
[Result "1-0"]
[WhiteElo "2406"]
[BlackElo "2189"]
[TimeControl "180+1"]
[EndTime "14:28:22 PST"]
[Termination "sari07 won on time"]

1. d4 {[%clk 0:03:00.9]} 1... Nf6 {[%clk 0:02:53.8]} 2. Bf4 {[%clk 0:03:01.2]}
2... g6 {[%clk 0:02:54.4]} 3. Nc3 {[%clk 0:03:00.6]} 3... d5 {[%clk 0:02:54.2]}
4. e3 {[%clk 0:02:57.2]} 4... Bg7 {[%clk 0:02:54.4]} 5. Be2 {[%clk 0:02:57]}
5... O-O {[%clk 0:02:54.6]} 6. h4 {[%clk 0:02:56.5]} 6... c5 {[%clk 0:02:54.8]}
7. h5 {[%clk 0:02:51.5]} 7... cxd4 {[%clk 0:02:50.5]} 8. exd4 {[%clk 0:02:49.9]}
8... Nc6 {[%clk 0:02:50.7]} 9. h6 {[%clk 0:02:36.4]} 9... Bh8 {[%clk 0:02:48.2]}
10. Nf3 {[%clk 0:02:36.2]} 10... Ne4 {[%clk 0:02:11]} 11. O-O {[%clk 0:02:22.3]}
11... Bg4 {[%clk 0:02:04]} 12. Be3 {[%clk 0:02:15.5]} 12... Rc8 {[%clk
0:01:49.4]} 13. Nxe4 {[%clk 0:02:00.6]} 13... dxe4 {[%clk 0:01:48]} 14. Ng5
{[%clk 0:02:01.1]} 14... Bxe2 {[%clk 0:01:43.2]} 15. Qxe2 {[%clk 0:02:02]} 15...
Nxd4 {[%clk 0:01:42.9]} 16. Bxd4 {[%clk 0:01:55.9]} 16... Qxd4 {[%clk
0:01:42.6]} 17. c3 {[%clk 0:01:48]} 17... Qe5 {[%clk 0:00:53.8]} 18. Nxe4 {[%clk
0:01:47.1]} 18... Rfd8 {[%clk 0:00:53.1]} 19. Rad1 {[%clk 0:01:42.7]} 19... Rd5
{[%clk 0:00:35.5]} 20. Rxd5 {[%clk 0:00:40.5]} 20... Qxd5 {[%clk 0:00:36.4]} 21.
Rd1 {[%clk 0:00:40.9]} 21... Qxa2 {[%clk 0:00:36.7]} 22. Ng5 {[%clk 0:00:41.6]}
22... Bf6 {[%clk 0:00:24.8]} 23. Qd2 {[%clk 0:00:28.2]} 23... Qa5 {[%clk
0:00:17.2]} 24. Ne4 {[%clk 0:00:27.9]} 24... Be5 {[%clk 0:00:13.6]} 25. Qd7
{[%clk 0:00:26.3]} 25... Qc7 {[%clk 0:00:09.8]} 26. Qxc7 {[%clk 0:00:19.8]}
26... Bxc7 {[%clk 0:00:10.7]} 27. Rd7 {[%clk 0:00:19.4]} 27... Bd6 {[%clk
0:00:02.5]} 28. Nxd6 {[%clk 0:00:17.7]} 28... exd6 {[%clk 0:00:02.5]} 29. Rxb7
{[%clk 0:00:18.6]} 29... a5 {[%clk 0:00:01.4]} 30. Ra7 {[%clk 0:00:18.2]} 30...
Rc5 {[%clk 0:00:01.6]} 31. Ra8+ {[%clk 0:00:17.4]} 1-0

[Event "Late-Titled-Tuesday-Blitz-January-30-2024"]
[Site "Chess.com"]
[Date "2024.01.30"]
[Round "3"]
[White "jk13"]
[Black "klimkoj"]
[Result "0-1"]
[WhiteElo "2703"]
[BlackElo "2921"]
[TimeControl "180+1"]
[EndTime "14:28:27 PST"]
[Termination "klimkoj won by checkmate"]

1. e4 {[%clk 0:03:00.9]} 1... c5 {[%clk 0:02:59.9]} 2. c3 {[%clk 0:03:01.4]}
2... d5 {[%clk 0:02:59.5]} 3. exd5 {[%clk 0:03:01.9]} 3... Qxd5 {[%clk
0:03:00.4]} 4. d4 {[%clk 0:03:02.4]} 4... Nf6 {[%clk 0:03:00.2]} 5. Nf3 {[%clk
0:03:03.1]} 5... e6 {[%clk 0:03:00.5]} 6. Na3 {[%clk 0:03:03.3]} 6... Nc6 {[%clk
0:03:00.5]} 7. Be3 {[%clk 0:03:03.3]} 7... cxd4 {[%clk 0:02:58.6]} 8. Nb5 {[%clk
0:03:04]} 8... Qd7 {[%clk 0:02:57.4]} 9. Nbxd4 {[%clk 0:03:04.4]} 9... Be7
{[%clk 0:02:57.2]} 10. Bb5 {[%clk 0:03:02.8]} 10... Qc7 {[%clk 0:02:50.2]} 11.
O-O {[%clk 0:02:38.4]} 11... O-O {[%clk 0:02:49]} 12. Re1 {[%clk 0:02:28.8]}
12... Nd5 {[%clk 0:02:43.1]} 13. Bc1 {[%clk 0:02:25.5]} 13... a6 {[%clk
0:02:40.3]} 14. Bd3 {[%clk 0:02:25.6]} 14... Nxd4 {[%clk 0:02:29.8]} 15. Nxd4
{[%clk 0:02:25.8]} 15... Bd6 {[%clk 0:02:29]} 16. Qh5 {[%clk 0:02:16.9]} 16...
g6 {[%clk 0:02:26]} 17. Qh4 {[%clk 0:02:12]} 17... Nf4 {[%clk 0:02:10.7]} 18.
Bf1 {[%clk 0:02:01.2]} 18... b6 {[%clk 0:01:51.4]} 19. Nf3 {[%clk 0:01:26]}
19... Bb7 {[%clk 0:01:44.2]} 20. Ng5 {[%clk 0:01:26.2]} 20... h5 {[%clk
0:01:43.9]} 21. Ne4 {[%clk 0:01:24.1]} 21... Bxe4 {[%clk 0:01:39.5]} 22. Rxe4
{[%clk 0:01:25]} 22... e5 {[%clk 0:01:36.1]} 23. Bxf4 {[%clk 0:01:11]} 23...
exf4 {[%clk 0:01:35.4]} 24. Rae1 {[%clk 0:01:08.5]} 24... b5 {[%clk 0:01:31.7]}
25. Qf6 {[%clk 0:00:59.6]} 25... Qd8 {[%clk 0:01:21.3]} 26. Qd4 {[%clk
0:00:54.2]} 26... Bc7 {[%clk 0:01:03.5]} 27. Qb4 {[%clk 0:00:39.6]} 27... Qd6
{[%clk 0:00:57.8]} 28. Qb3 {[%clk 0:00:38.4]} 28... Rad8 {[%clk 0:00:52.9]} 29.
a4 {[%clk 0:00:36.3]} 29... bxa4 {[%clk 0:00:49.2]} 30. Qxa4 {[%clk 0:00:37.2]}
30... a5 {[%clk 0:00:49.6]} 31. Re7 {[%clk 0:00:28.4]} 31... f3 {[%clk
0:00:37.9]} 32. g3 {[%clk 0:00:28.3]} 32... Bb6 {[%clk 0:00:38]} 33. Qe4 {[%clk
0:00:10.4]} 33... Qf6 {[%clk 0:00:37.9]} 34. h4 {[%clk 0:00:07.5]} 34... Rd2
{[%clk 0:00:37.4]} 35. Re3 {[%clk 0:00:07.3]} 35... Bxe3 {[%clk 0:00:36.3]} 36.
Qxe3 {[%clk 0:00:08.2]} 36... Rxb2 {[%clk 0:00:34.5]} 37. Bc4 {[%clk 0:00:08.4]}
37... Qf5 {[%clk 0:00:30.3]} 38. Kh2 {[%clk 0:00:08.4]} 38... Rb1 {[%clk
0:00:30.2]} 39. Bd3 {[%clk 0:00:08]} 39... Qh3+ {[%clk 0:00:28.8]} 40. Kxh3
{[%clk 0:00:07]} 40... Rh1# {[%clk 0:00:29.7]} 0-1

[Event "Late-Titled-Tuesday-Blitz-January-30-2024"]
[Site "Chess.com"]
[Date "2024.01.30"]
[Round "3"]
[White "Elsa167"]
[Black "marcodobrikov"]
[Result "1-0"]
[WhiteElo "2870"]
[BlackElo "2613"]
[TimeControl "180+1"]
[EndTime "14:28:28 PST"]
[Termination "Elsa167 won by checkmate"]

1. d4 {[%clk 0:03:00.9]} 1... g6 {[%clk 0:02:58.2]} 2. c4 {[%clk 0:03:00.9]}
2... Bg7 {[%clk 0:02:58.4]} 3. e4 {[%clk 0:03:01.5]} 3... d6 {[%clk 0:02:57.1]}
4. Nc3 {[%clk 0:03:01.3]} 4... Nc6 {[%clk 0:02:55.3]} 5. Nge2 {[%clk 0:02:59.3]}
5... e5 {[%clk 0:02:55.2]} 6. d5 {[%clk 0:02:59.7]} 6... Nd4 {[%clk 0:02:55]} 7.
Be3 {[%clk 0:02:59.4]} 7... Nxe2 {[%clk 0:02:38.1]} 8. Bxe2 {[%clk 0:03:00.3]}
8... Ne7 {[%clk 0:02:27.2]} 9. c5 {[%clk 0:02:38.1]} 9... O-O {[%clk 0:02:25.1]}
10. O-O {[%clk 0:02:27.1]} 10... f5 {[%clk 0:02:22.7]} 11. f3 {[%clk 0:02:27.2]}
11... f4 {[%clk 0:02:23.4]} 12. Bf2 {[%clk 0:02:27.4]} 12... g5 {[%clk
0:02:24.3]} 13. Rc1 {[%clk 0:02:25.9]} 13... Ng6 {[%clk 0:02:13.7]} 14. cxd6
{[%clk 0:02:19.4]} 14... cxd6 {[%clk 0:02:14.6]} 15. Nb5 {[%clk 0:02:18.8]}
15... a6 {[%clk 0:02:12.9]} 16. Nc7 {[%clk 0:02:18.6]} 16... Rb8 {[%clk
0:02:11.4]} 17. Ba7 {[%clk 0:01:54.8]} 17... Bd7 {[%clk 0:02:11.6]} 18. Bxb8
{[%clk 0:01:55.1]} 18... Qxb8 {[%clk 0:02:12.5]} 19. Ne6 {[%clk 0:01:52.6]}
19... Re8 {[%clk 0:02:10.4]} 20. Kh1 {[%clk 0:01:41.9]} 20... Bf6 {[%clk
0:02:05.1]} 21. Qc2 {[%clk 0:01:37.7]} 21... Rc8 {[%clk 0:01:59]} 22. Qd2 {[%clk
0:01:34.6]} 22... Re8 {[%clk 0:01:57.3]} 23. Qb4 {[%clk 0:01:31.5]} 23... h5
{[%clk 0:01:34.4]} 24. Nc7 {[%clk 0:01:20.2]} 24... Rd8 {[%clk 0:01:24.2]} 25.
Qxd6 {[%clk 0:01:16.3]} 25... Kg7 {[%clk 0:01:24.7]} 26. Ne6+ {[%clk 0:01:06]}
26... Kh6 {[%clk 0:01:25.3]} 27. Qxb8 {[%clk 0:01:05]} 27... Rxb8 {[%clk
0:01:26.2]} 28. Rc7 {[%clk 0:01:04.2]} 28... Bxe6 {[%clk 0:01:25.4]} 29. dxe6
{[%clk 0:01:04.2]} 29... Ne7 {[%clk 0:01:25]} 30. Rd1 {[%clk 0:01:03.1]} 30...
b5 {[%clk 0:01:23.9]} 31. Rdd7 {[%clk 0:01:03.1]} 31... Re8 {[%clk 0:01:23]} 32.
Kg1 {[%clk 0:00:58.4]} 32... g4 {[%clk 0:01:22.4]} 33. fxg4 {[%clk 0:00:57.5]}
33... hxg4 {[%clk 0:01:23.3]} 34. Bxg4 {[%clk 0:00:58]} 34... Kg5 {[%clk
0:01:24.1]} 35. h3 {[%clk 0:00:56.4]} 35... Kh4 {[%clk 0:01:24.2]} 36. Kf2
{[%clk 0:00:56.2]} 36... b4 {[%clk 0:01:21.2]} 37. Kf3 {[%clk 0:00:54.5]} 37...
a5 {[%clk 0:01:14.4]} 38. b3 {[%clk 0:00:54.9]} 38... Kg5 {[%clk 0:01:08.6]} 39.
g3 {[%clk 0:00:50.8]} 39... fxg3 {[%clk 0:01:08.4]} 40. Kxg3 {[%clk 0:00:51.7]}
40... Ng6 {[%clk 0:01:05.2]} 41. Rf7 {[%clk 0:00:37.7]} 41... Rd8 {[%clk
0:01:02.9]} 42. h4+ {[%clk 0:00:30]} 42... Nxh4 {[%clk 0:00:57.9]} 43. Rxf6
{[%clk 0:00:30.4]} 43... Kxf6 {[%clk 0:00:36.6]} 44. Kxh4 {[%clk 0:00:30.2]}
44... a4 {[%clk 0:00:37.5]} 45. bxa4 {[%clk 0:00:29.8]} 45... b3 {[%clk
0:00:37.1]} 46. axb3 {[%clk 0:00:29.1]} 46... Rd3 {[%clk 0:00:33.6]} 47. Rf7+
{[%clk 0:00:28.6]} 47... Kg6 {[%clk 0:00:33.9]} 48. Bf5+ {[%clk 0:00:28.5]}
48... Kh6 {[%clk 0:00:33.7]} 49. Rh7# {[%clk 0:00:28.8]} 1-0

[Event "Late-Titled-Tuesday-Blitz-January-30-2024"]
[Site "Chess.com"]
[Date "2024.01.30"]
[Round "3"]
[White "PoXerStar"]
[Black "HajiyevKanan"]
[Result "1-0"]
[WhiteElo "2438"]
[BlackElo "2577"]
[TimeControl "180+1"]
[EndTime "14:28:32 PST"]
[Termination "PoXerStar won on time"]

1. d4 {[%clk 0:03:00.1]} 1... d5 {[%clk 0:02:57]} 2. c4 {[%clk 0:03:00.2]} 2...
c6 {[%clk 0:02:57.6]} 3. cxd5 {[%clk 0:02:57.3]} 3... cxd5 {[%clk 0:02:58.5]} 4.
Nc3 {[%clk 0:02:58.2]} 4... Nf6 {[%clk 0:02:59.1]} 5. Bf4 {[%clk 0:02:58.6]}
5... a6 {[%clk 0:02:59.9]} 6. e3 {[%clk 0:02:58.5]} 6... Nc6 {[%clk 0:03:00.6]}
7. Bd3 {[%clk 0:02:58.5]} 7... Bg4 {[%clk 0:03:00.5]} 8. f3 {[%clk 0:02:52.9]}
8... Bh5 {[%clk 0:02:59.7]} 9. Nge2 {[%clk 0:02:53.6]} 9... e6 {[%clk
0:02:59.7]} 10. O-O {[%clk 0:02:49.3]} 10... Bd6 {[%clk 0:02:59.6]} 11. Rc1
{[%clk 0:02:49.9]} 11... O-O {[%clk 0:02:58.9]} 12. Na4 {[%clk 0:02:47.2]} 12...
Bg6 {[%clk 0:02:57.1]} 13. Nc5 {[%clk 0:02:45.5]} 13... Bxc5 {[%clk 0:02:40.4]}
14. Rxc5 {[%clk 0:02:46.4]} 14... Bxd3 {[%clk 0:02:40]} 15. Qxd3 {[%clk
0:02:46.5]} 15... Qb6 {[%clk 0:02:40.8]} 16. Qc2 {[%clk 0:02:36.5]} 16... h6
{[%clk 0:02:32.6]} 17. Rc1 {[%clk 0:02:31.5]} 17... Nd7 {[%clk 0:02:26.3]} 18.
Rc3 {[%clk 0:02:31.2]} 18... Nb4 {[%clk 0:02:21.2]} 19. Qb3 {[%clk 0:02:30.5]}
19... Nc6 {[%clk 0:02:21.7]} 20. Qc2 {[%clk 0:02:23.1]} 20... Rac8 {[%clk
0:02:12.5]} 21. Bd6 {[%clk 0:02:06.8]} 21... Rfd8 {[%clk 0:02:10]} 22. Kf2
{[%clk 0:01:55.8]} 22... Na7 {[%clk 0:01:57.9]} 23. Bc7 {[%clk 0:01:51.2]} 23...
Qb5 {[%clk 0:01:40]} 24. Bxd8 {[%clk 0:01:49.9]} 24... Rxd8 {[%clk 0:01:40.9]}
25. Nf4 {[%clk 0:01:34.4]} 25... Nf6 {[%clk 0:01:21.9]} 26. Nd3 {[%clk 0:01:28]}
26... Qd7 {[%clk 0:01:12]} 27. Rc7 {[%clk 0:01:27.5]} 27... Qd6 {[%clk
0:01:10.7]} 28. Ne5 {[%clk 0:01:27.5]} 28... Rf8 {[%clk 0:00:55.1]} 29. Rxb7
{[%clk 0:01:27.9]} 29... Nc8 {[%clk 0:00:52.6]} 30. Qc5 {[%clk 0:01:18.9]} 30...
Qd8 {[%clk 0:00:48.6]} 31. Nxf7 {[%clk 0:01:10.3]} 31... Qe8 {[%clk 0:00:21.9]}
32. Kg1 {[%clk 0:01:09.3]} 32... Ne7 {[%clk 0:00:13.8]} 33. Rxe7 {[%clk
0:01:02.1]} 33... Qa4 {[%clk 0:00:13.5]} 34. Ne5 {[%clk 0:00:53.4]} 34... Qxa2
{[%clk 0:00:08.4]} 35. Qc7 {[%clk 0:00:53.6]} 35... Nh5 {[%clk 0:00:07.4]} 36.
Qc2 {[%clk 0:00:48.7]} 36... Qa5 {[%clk 0:00:06.1]} 37. g4 {[%clk 0:00:33.6]}
37... Nf6 {[%clk 0:00:03.5]} 38. Qg6 {[%clk 0:00:33]} 1-0

[Event "Late-Titled-Tuesday-Blitz-January-30-2024"]
[Site "Chess.com"]
[Date "2024.01.30"]
[Round "3"]
[White "ARTHURMOTIVATOR"]
[Black "Atousa"]
[Result "1-0"]
[WhiteElo "2273"]
[BlackElo "2406"]
[TimeControl "180+1"]
[EndTime "14:28:32 PST"]
[Termination "ARTHURMOTIVATOR won by resignation"]

1. e4 {[%clk 0:03:00.9]} 1... c5 {[%clk 0:02:55.7]} 2. Nf3 {[%clk 0:02:59.5]}
2... d6 {[%clk 0:02:54.9]} 3. d4 {[%clk 0:02:58.8]} 3... cxd4 {[%clk 0:02:54.8]}
4. Nxd4 {[%clk 0:02:59.7]} 4... Nf6 {[%clk 0:02:55]} 5. Nc3 {[%clk 0:03:00.2]}
5... g6 {[%clk 0:02:53.8]} 6. Be2 {[%clk 0:02:57.1]} 6... Bg7 {[%clk 0:02:53.8]}
7. O-O {[%clk 0:02:57.8]} 7... O-O {[%clk 0:02:54.1]} 8. Re1 {[%clk 0:02:58.5]}
8... Nc6 {[%clk 0:02:54.2]} 9. Nb3 {[%clk 0:02:49.8]} 9... Be6 {[%clk
0:02:43.2]} 10. Bf1 {[%clk 0:02:40.5]} 10... a6 {[%clk 0:02:30.8]} 11. Bg5
{[%clk 0:02:38.9]} 11... h6 {[%clk 0:02:24.3]} 12. Bh4 {[%clk 0:02:37.1]} 12...
Rc8 {[%clk 0:02:18.5]} 13. Nd5 {[%clk 0:02:16.7]} 13... g5 {[%clk 0:01:55.7]}
14. Bg3 {[%clk 0:02:12.1]} 14... Nd7 {[%clk 0:01:39.6]} 15. c3 {[%clk
0:02:03.5]} 15... b5 {[%clk 0:01:20.1]} 16. Kh1 {[%clk 0:01:53.5]} 16... Nb6
{[%clk 0:00:43.9]} 17. f4 {[%clk 0:01:46.8]} 17... Nc4 {[%clk 0:00:35.8]} 18.
Bxc4 {[%clk 0:01:31.5]} 18... bxc4 {[%clk 0:00:33.8]} 19. Nd2 {[%clk 0:01:31.7]}
19... gxf4 {[%clk 0:00:23.6]} 20. Nxf4 {[%clk 0:01:25.8]} 20... Ne5 {[%clk
0:00:24]} 21. Qh5 {[%clk 0:01:09.6]} 21... Bg4 {[%clk 0:00:19]} 22. Qh4 {[%clk
0:01:08.7]} 22... Kh7 {[%clk 0:00:11.9]} 23. Nh5 {[%clk 0:00:58.9]} 23... Bh8
{[%clk 0:00:07.9]} 24. Bxe5 {[%clk 0:00:56.9]} 24... Bxh5 {[%clk 0:00:08.1]} 25.
Bxh8 {[%clk 0:00:55.7]} 25... Rxh8 {[%clk 0:00:05.9]} 26. Qxh5 {[%clk
0:00:54.9]} 26... Qf8 {[%clk 0:00:06.6]} 27. Rf1 {[%clk 0:00:54]} 27... f6
{[%clk 0:00:05.6]} 28. Nf3 {[%clk 0:00:51.1]} 28... Rg8 {[%clk 0:00:06]} 29. Nd4
{[%clk 0:00:47.1]} 29... Rg5 {[%clk 0:00:04.9]} 30. Qh3 {[%clk 0:00:45.2]} 30...
Qg8 {[%clk 0:00:05.2]} 31. Rf2 {[%clk 0:00:44.1]} 31... Rb8 {[%clk 0:00:02.4]}
32. Raf1 {[%clk 0:00:41.5]} 32... Qg6 {[%clk 0:00:02.9]} 33. Nf5 {[%clk
0:00:40]} 33... Rh5 {[%clk 0:00:03.5]} 34. Qf3 {[%clk 0:00:36.2]} 34... Qf7
{[%clk 0:00:04.2]} 35. Nxe7 {[%clk 0:00:32.6]} 35... Re5 {[%clk 0:00:04.8]} 36.
Nd5 {[%clk 0:00:31.3]} 36... Rbe8 {[%clk 0:00:04.9]} 37. Nxf6+ {[%clk
0:00:30.9]} 37... Kh8 {[%clk 0:00:05.3]} 38. Nxe8 {[%clk 0:00:29.8]} 38... Qxe8
{[%clk 0:00:06.1]} 39. Qf6+ {[%clk 0:00:28.1]} 39... Kh7 {[%clk 0:00:06.4]} 40.
Qxd6 {[%clk 0:00:26.1]} 1-0

[Event "Late-Titled-Tuesday-Blitz-January-30-2024"]
[Site "Chess.com"]
[Date "2024.01.30"]
[Round "3"]
[White "temus_galaktionov"]
[Black "aghasiyevkamal"]
[Result "1-0"]
[WhiteElo "2876"]
[BlackElo "2642"]
[TimeControl "180+1"]
[EndTime "14:28:36 PST"]
[Termination "temus_galaktionov won on time"]

1. d4 {[%clk 0:03:00.9]} 1... d5 {[%clk 0:02:59.3]} 2. Nf3 {[%clk 0:03:00.3]}
2... Nf6 {[%clk 0:02:58.8]} 3. c4 {[%clk 0:03:00.8]} 3... e6 {[%clk 0:02:55.9]}
4. Nc3 {[%clk 0:03:00.6]} 4... Be7 {[%clk 0:02:56]} 5. Bf4 {[%clk 0:03:00.4]}
5... O-O {[%clk 0:02:55.7]} 6. e3 {[%clk 0:03:01]} 6... b6 {[%clk 0:02:55.4]} 7.
Bd3 {[%clk 0:03:00.8]} 7... dxc4 {[%clk 0:02:53.4]} 8. Bxc4 {[%clk 0:03:01.7]}
8... Ba6 {[%clk 0:02:52.2]} 9. Bxa6 {[%clk 0:03:00.8]} 9... Nxa6 {[%clk
0:02:53.1]} 10. O-O {[%clk 0:02:59.7]} 10... c5 {[%clk 0:02:51.6]} 11. Qe2
{[%clk 0:03:00.3]} 11... Qc8 {[%clk 0:02:49.3]} 12. Rac1 {[%clk 0:02:57.7]}
12... Qb7 {[%clk 0:02:49.2]} 13. Nb5 {[%clk 0:02:47.9]} 13... Rfd8 {[%clk
0:02:43.4]} 14. Rfd1 {[%clk 0:02:45.4]} 14... Rac8 {[%clk 0:02:29.8]} 15. h3
{[%clk 0:02:34.8]} 15... cxd4 {[%clk 0:02:18.6]} 16. Nfxd4 {[%clk 0:02:32.3]}
16... Nc5 {[%clk 0:02:14.3]} 17. Qf3 {[%clk 0:02:22]} 17... Nce4 {[%clk
0:02:07.8]} 18. Bc7 {[%clk 0:02:06.8]} 18... Re8 {[%clk 0:02:01.8]} 19. Be5
{[%clk 0:02:02.2]} 19... a6 {[%clk 0:01:49.2]} 20. Nc3 {[%clk 0:00:54.2]} 20...
Nc5 {[%clk 0:01:47.2]} 21. Qxb7 {[%clk 0:00:48.9]} 21... Nxb7 {[%clk 0:01:47.1]}
22. Na4 {[%clk 0:00:49.5]} 22... Nd7 {[%clk 0:01:33.8]} 23. Bc7 {[%clk
0:00:37.3]} 23... b5 {[%clk 0:01:14.3]} 24. Nb6 {[%clk 0:00:37.6]} 24... Nxb6
{[%clk 0:01:06.6]} 25. Bxb6 {[%clk 0:00:38.5]} 25... Bf6 {[%clk 0:01:00.4]} 26.
b3 {[%clk 0:00:35.9]} 26... h5 {[%clk 0:00:23.9]} 27. Nc6 {[%clk 0:00:30.7]}
27... Kh7 {[%clk 0:00:22.8]} 28. Kf1 {[%clk 0:00:30.2]} 28... Kg6 {[%clk
0:00:10.4]} 29. Rd7 {[%clk 0:00:28.3]} 29... Bb2 {[%clk 0:00:05.4]} 30. Rc2
{[%clk 0:00:26.1]} 30... Bf6 {[%clk 0:00:02.2]} 31. Rxb7 {[%clk 0:00:25.2]}
31... e5 {[%clk 0:00:02.7]} 32. Rd7 {[%clk 0:00:23.5]} 32... Kf5 {[%clk
0:00:02]} 33. Ke2 {[%clk 0:00:23]} 33... Ke6 {[%clk 0:00:02]} 34. Rc7 {[%clk
0:00:21.3]} 34... Rxc7 {[%clk 0:00:01.9]} 35. Bxc7 {[%clk 0:00:22.2]} 35... Rc8
{[%clk 0:00:01.8]} 36. Ba5 {[%clk 0:00:22.2]} 36... Kd7 {[%clk 0:00:02.2]} 37.
Nb4 {[%clk 0:00:22.2]} 37... Re8 {[%clk 0:00:02.6]} 38. Nxa6 {[%clk 0:00:21.5]}
1-0

[Event "Late-Titled-Tuesday-Blitz-January-30-2024"]
[Site "Chess.com"]
[Date "2024.01.30"]
[Round "3"]
[White "Chessdreamer2020"]
[Black "ContrVersia"]
[Result "1-0"]
[WhiteElo "2577"]
[BlackElo "2839"]
[TimeControl "180+1"]
[EndTime "14:28:43 PST"]
[Termination "Chessdreamer2020 won by resignation"]

1. e4 {[%clk 0:03:00.7]} 1... c5 {[%clk 0:02:59.8]} 2. Nf3 {[%clk 0:03:00.5]}
2... Nc6 {[%clk 0:02:59.1]} 3. Bb5 {[%clk 0:03:00.6]} 3... g6 {[%clk 0:02:58.4]}
4. O-O {[%clk 0:03:00.8]} 4... Bg7 {[%clk 0:02:58.5]} 5. c3 {[%clk 0:03:01.3]}
5... Nf6 {[%clk 0:02:55.3]} 6. Qa4 {[%clk 0:03:01.5]} 6... O-O {[%clk
0:02:48.1]} 7. d4 {[%clk 0:03:00.5]} 7... cxd4 {[%clk 0:02:27.5]} 8. cxd4 {[%clk
0:03:01.4]} 8... a6 {[%clk 0:02:26.2]} 9. Nc3 {[%clk 0:03:00.9]} 9... Rb8 {[%clk
0:02:19.8]} 10. Bxc6 {[%clk 0:02:59.4]} 10... bxc6 {[%clk 0:02:20.7]} 11. h3
{[%clk 0:02:59]} 11... a5 {[%clk 0:02:16.8]} 12. Qc2 {[%clk 0:02:58.2]} 12...
Ba6 {[%clk 0:02:15.7]} 13. Re1 {[%clk 0:02:57.2]} 13... Qb6 {[%clk 0:02:12.6]}
14. b3 {[%clk 0:02:55.3]} 14... d6 {[%clk 0:02:11.7]} 15. Bg5 {[%clk 0:02:51.6]}
15... h6 {[%clk 0:02:10.7]} 16. Bh4 {[%clk 0:02:49.5]} 16... g5 {[%clk
0:02:09.7]} 17. Bg3 {[%clk 0:02:49.4]} 17... Nh5 {[%clk 0:02:10]} 18. Bh2 {[%clk
0:02:49.5]} 18... Bxd4 {[%clk 0:02:09.8]} 19. Nxd4 {[%clk 0:02:49.5]} 19... Qxd4
{[%clk 0:02:10]} 20. Rad1 {[%clk 0:02:49.3]} 20... Qc5 {[%clk 0:02:05.5]} 21. e5
{[%clk 0:02:45.7]} 21... Rbd8 {[%clk 0:01:55.6]} 22. exd6 {[%clk 0:02:42.5]}
22... exd6 {[%clk 0:01:55.1]} 23. Qb2 {[%clk 0:02:29.1]} 23... d5 {[%clk
0:01:25.6]} 24. Na4 {[%clk 0:02:28.8]} 24... Qa7 {[%clk 0:01:25.6]} 25. g4
{[%clk 0:02:16.1]} 25... Ng7 {[%clk 0:01:18.8]} 26. Qf6 {[%clk 0:02:14]} 26...
Kh7 {[%clk 0:01:00.1]} 27. Re7 {[%clk 0:01:57.5]} 27... Rd7 {[%clk 0:00:57.2]}
28. Rde1 {[%clk 0:01:42.1]} 28... Bd3 {[%clk 0:00:26.2]} 29. Rxd7 {[%clk
0:01:32.2]} 29... Qxd7 {[%clk 0:00:27.1]} 30. Re7 {[%clk 0:01:32.4]} 30... Ne8
{[%clk 0:00:24.8]} 31. Qe5 {[%clk 0:01:24.2]} 31... Qd8 {[%clk 0:00:24.7]} 32.
Nc5 {[%clk 0:01:21.3]} 32... Bg6 {[%clk 0:00:24.5]} 33. Nd7 {[%clk 0:01:19.6]}
33... Kg8 {[%clk 0:00:17.9]} 34. Nxf8 {[%clk 0:00:46.6]} 34... Kxf8 {[%clk
0:00:18.8]} 35. Rb7 {[%clk 0:00:42.7]} 35... f6 {[%clk 0:00:18.9]} 36. Qd4
{[%clk 0:00:33.2]} 36... Qc8 {[%clk 0:00:16.9]} 37. Qc5+ {[%clk 0:00:31.1]}
37... Kg8 {[%clk 0:00:17.2]} 38. Qe7 {[%clk 0:00:29.9]} 38... d4 {[%clk
0:00:17.3]} 39. Bd6 {[%clk 0:00:18.9]} 1-0